[Event "DVM U14w 2019"]
[Site "Neumuenster"]
[Date "2019.12.28"]
[Round "3"]
[White "Reuter, Elisa"]
[Black "Roncea, Andrea-Alexandra"]
[Result "*"]
[ECO "C54"]
[WhiteElo "1850"]
[BlackElo "1591"]
[Annotator "NA RC"]
[PlyCount "61"]
[EventDate "2019.12.27"]
[EventType "team-tourn"]
[EventRounds "7"]
[EventCountry "GER"]
[SourceTitle "playchess.com"]
[Source "ChessBase"]
[SourceQuality "1"]
[WhiteTeam "SG Leipzig"]
[BlackTeam "SC Papenburg"]
[WhiteTeamCountry "GER"]
[BlackTeamCountry "GER"]
[TimeControl "40/5400+30:1800+30"]

1. e4 {[%emt 0:00:00]} e5 {[%emt 0:00:00]} 2. Nf3 {[%emt 0:00:00]} Nc6 {[%emt 0:00:00]} 3. Bc4 {[%emt 0:00:00]} Bc5 {[%emt 0:00:00]} 4. c3 {[%emt 0:00:00]} Nf6 {[%emt 0:00:01]} 5. d3 {[%emt 0:00:00]} a6 {[%emt 0:00:16]} 6. Bb3 {[%emt 0:00:00]} Ba7 {[%emt 0:00:13]} 7. Nbd2 {[%emt 0:00:00]} O-O {[%emt 0:01:10]} 8. O-O {[%emt 0:00:04]} d6 {[%emt 0:00:54]} 9. h3 {[%emt 0:00:21]} Ne7 {[%emt 0:00:40]} 10. Re1 {[%emt 0:00:24]} Ng6 {[%emt 0:00:28]} 11. Nf1 {[%emt 0:00:11]} h6 {[%emt 0:00:32]} 12. Ng3 {[%emt 0:00:08]} Re8 {[%emt 0:00:17]} 13. d4 {[%emt 0:03:41]} b5 {[%emt 0:03:16] unterminated} 14. Bc2 {[%emt 0:05:07]} Bb7 {[%emt 0:00:40] unterminated} 15. a4 {[%emt 0:01:40] unterminated} c5 {[%emt 0:07:11] unterminated [#] unterminated. C54: Giuoco Piano: 4 c3 Nf6, main lines with 5 d4 and 5 d3} 16. d5 $146 {[%emt 0:03:21] unterminated} ({Predecessor:} 16. Be3 Bb6 17. axb5 axb5 18. Rxa8 Bxa8 19. dxe5 Nxe5 20. Nxe5 dxe5 21. Qxd8 Rxd8 22. b4 Rc8 23. Nf5 Kf8 24. Nd6 Rc6 25. Ra1 Rxd6 26. Rxa8+ Rd8 27. Bxc5+ Kg8 28. Rxd8+ Bxd8 29. Bd3 Nd7 30. Bd6 {1-0 (30) Neiksans,A (2627)-Tari,A (2584) chess.com INT 2017}) 16... Qc7 {[%emt 0:14:50] unterminated} 17. Nf5 {[%emt 0:05:03] unterminated} Bc8 {unterminated} 18. N3h4 {[%emt 0:02:38] unterminated} Bxf5 {[%emt 0:07:52]} 19. Nxf5 {[%emt 0:00:11]} Ne7 {[%emt 0:00:47] unterminated} 20. Ng3 {[%emt 0:03:32] unterminated} Rec8 {[%emt 0:03:52] unterminated} 21. Qf3 {[%emt 0:02:06] unterminated} Nh7 {[%emt 0:03:21] unterminated} 22. h4 {[%emt 0:04:19] unterminated} b4 {[%emt 0:05:48]} 23. c4 {[%emt 0:00:27] unterminated} Qd7 {[%emt 0:04:39] unterminated} 24. h5 {[%emt 0:01:03] unterminated} f6 {[%emt 0:03:29] unterminated} 25. b3 $16 {[%emt 0:07:37] unterminated} Kf7 {[%emt 0:03:37]} 26. Bd1 {[%emt 0:00:46] unterminated} Rg8 {[%emt 0:03:43] unterminated} 27. Qd3 {[%emt 0:02:10] unterminated} Ke8 {[%emt 0:03:19] unterminated} 28. Be2 {[%emt 0:01:24] unterminated} Nf8 {[%emt 0:06:07]} 29. Qd1 {[%emt 0:00:50] unterminated} Kd8 {[%emt 0:01:25]} 30. Bg4 {[%emt 0:00:23] unterminated} Qc7 {[%emt 0:01:27] unterminated} 31. Bf5 {[%emt 0:04:35] unterminated} *

[Event "DVM U14w 2019"]
[Site "Neumuenster"]
[Date "2019.12.28"]
[Round "3"]
[White "Werner, Rosalie"]
[Black "Dietz, Kristin"]
[Result "*"]
[ECO "B42"]
[WhiteElo "1674"]
[BlackElo "1946"]
[Annotator "NA RC"]
[PlyCount "52"]
[EventDate "2019.12.27"]
[EventType "team-tourn"]
[EventRounds "7"]
[EventCountry "GER"]
[SourceTitle "playchess.com"]
[Source "ChessBase"]
[SourceQuality "1"]
[WhiteTeam "VSG 1880 Offenbach"]
[BlackTeam "USV Halle"]
[WhiteTeamCountry "GER"]
[BlackTeamCountry "GER"]
[TimeControl "40/5400+30:1800+30"]

1. e4 {[%emt 0:00:00]} c5 {[%emt 0:00:00]} 2. Nf3 {[%emt 0:00:00]} e6 {[%emt 0:00:04]} 3. d4 {[%emt 0:00:00]} cxd4 {[%emt 0:00:17]} 4. Nxd4 {[%emt 0:00:00]} a6 {[%emt 0:00:24]} 5. Bd3 {[%emt 0:00:00]} Nf6 {[%emt 0:00:39]} 6. O-O {[%emt 0:00:04]} Qc7 {[%emt 0:01:00]} 7. Nc3 {[%emt 0:00:16]} b5 {[%emt 0:01:57]} 8. Qe2 {[%emt 0:02:29]} d6 {[%emt 0:00:18] B43: Sicilian: Kan Variation: 5 Nc3} (8... Bb7 9. Bd2 Bd6 10. Kh1 Nc6 11. Nxc6 dxc6 12. Rae1 e5 13. a4 h5 14. h3 h4 15. Ra1 Rb8 16. axb5 axb5 17. Nd1 Nh5 18. Ne3 g6 19. Ng4 Qe7 20. Qf3 Kf8 21. c4 Kg7 22. b4 bxc4 23. Bxc4 {½-½ (23) Kadric,D (2556)-Stukopin,A (2587) Kenner 2016}) 9. Be3 {[%emt 0:02:37]} Bb7 {[%emt 0:00:50]} 10. a3 {[%emt 0:02:12]} Be7 {[%emt 0:00:58] unterminated} 11. Rae1 {[%emt 0:03:25]} O-O {[%emt 0:00:51] unterminated} 12. f4 {[%emt 0:01:58]} Nbd7 {[%emt 0:02:43]} 13. Nb3 {[%emt 0:01:03]} Nc5 {[%emt 0:07:37]} 14. Nd2 $146 {[%emt 0:06:11]} ({Predecessor:} 14. Bd2 e5 15. Kh1 Rfe8 16. fxe5 dxe5 17. Nxc5 Qxc5 18. Nd5 Nxd5 19. exd5 g6 20. Qxe5 {½-½ (20) Batricevic,S (2239)-Rajkovic,D (2409) Cetinje 2012}) 14... Rad8 {[%emt 0:11:31]} 15. Kh1 {[%emt 0:01:53]} Nxd3 {[%emt 0:17:19]} 16. cxd3 {[%emt 0:01:43]} d5 {[%emt 0:07:09]} 17. e5 {[%emt 0:14:25]} d4 {[%emt 0:01:09]} 18. exf6 {[%emt 0:00:27]} Bxf6 {[%emt 0:00:16]} 19. Nce4 {[%emt 0:00:26] unterminated} dxe3 {[%emt 0:00:31]} 20. Nxf6+ {[%emt 0:00:24]} gxf6 {[%emt 0:00:09] unterminated} 21. Ne4 $11 {[%emt 0:13:45] unterminated} Bxe4 {[%emt 0:07:45]} 22. dxe4 {[%emt 0:00:08]} Rd2 {[%emt 0:00:27] unterminated} 23. Qg4+ {[%emt 0:03:52] unterminated} Kh8 {[%emt 0:01:01] unterminated} 24. Qh4 {[%emt 0:00:15] unterminated} Rg8 {[%emt 0:11:32] unterminated} 25. Qxf6+ {[%emt 0:02:01]} Rg7 {[%emt 0:00:08] unterminated} 26. Rxe3 {[%emt 0:01:47] unterminated} Rdxg2 {[%emt 0:01:07] unterminated} *

[Event "DVM U14w 2019"]
[Site "Neumuenster"]
[Date "2019.12.28"]
[Round "3"]
[White "Zoellner, Bente"]
[Black "Oswald, Hannah"]
[Result "*"]
[ECO "D26"]
[WhiteElo "1630"]
[BlackElo "1647"]
[Annotator "NA RC"]
[PlyCount "54"]
[EventDate "2019.12.27"]
[EventType "team-tourn"]
[EventRounds "7"]
[EventCountry "GER"]
[SourceTitle "playchess.com"]
[Source "ChessBase"]
[SourceQuality "1"]
[WhiteTeam "SC Papenburg"]
[BlackTeam "SG Leipzig"]
[WhiteTeamCountry "GER"]
[BlackTeamCountry "GER"]
[TimeControl "40/5400+30:1800+30"]

1. Nf3 {[%emt 0:00:00]} Nf6 {[%emt 0:00:00]} 2. c4 {[%emt 0:00:13]} e6 {[%emt 0:00:48]} 3. d4 {[%emt 0:00:23]} d5 {[%emt 0:00:40]} 4. e3 {[%emt 0:02:06]} dxc4 {[%emt 0:00:51]} 5. Bxc4 {[%emt 0:00:10]} a6 {[%emt 0:01:29]} 6. Bb3 {[%emt 0:00:51]} c5 {[%emt 0:02:57]} 7. O-O {[%emt 0:00:38]} Nc6 {[%emt 0:02:55]} 8. Re1 {[%emt 0:02:41]} Be7 9. Nc3 {[%emt 0:07:18]} b5 {[%emt 0:13:28]} 10. d5 {[%emt 0:02:45]} exd5 {[%emt 0:03:34]} 11. Nxd5 {[%emt 0:01:26]} c4 12. Nxe7 Qxe7 {[%emt 0:06:08]} 13. Bc2 {[%emt 0:07:30]} Bg4 14. h3 {[%emt 0:03:50]} Bh5 {[%emt 0:07:17]} 15. g4 {[%emt 0:08:23]} Bg6 {[%emt 0:11:53]} 16. Nd4 {[%emt 0:04:22]} Bxc2 {[%emt 0:03:58]} 17. Qxc2 {[%emt 0:04:26]} Nxd4 {[%emt 0:04:16]} 18. Qc3 {[%emt 0:01:17]} Nf3+ {[%emt 0:00:37]} 19. Kf1 {[%emt 0:00:20]} Nxe1 {[%emt 0:00:19]} 20. Kxe1 {[%emt 0:00:10]} O-O {[%emt 0:01:10]} 21. b3 {[%emt 0:03:16]} Ne4 {[%emt 0:01:34]} 22. Qc2 {[%emt 0:02:25]} Qb4+ {[%emt 0:01:07]} 23. Ke2 {[%emt 0:12:36]} Qc3 {[%emt 0:01:33]} 24. Qxc3 {[%emt 0:00:41]} Nxc3+ {[%emt 0:00:08]} 25. Kf3 {[%emt 0:00:09] unterminated} Nd5 {[%emt 0:00:59]} 26. bxc4 {[%emt 0:00:43]} bxc4 {[%emt 0:00:30] unterminated} 27. Ba3 {[%emt 0:02:09]} Rfe8 {[%emt 0:00:46] unterminated} *

[Event "DVM U14w 2019"]
[Site "Neumuenster"]
[Date "2019.12.28"]
[Round "3"]
[White "Schulz, Hannah"]
[Black "Berghold, Lotta"]
[Result "1-0"]
[ECO "B00"]
[WhiteElo "1588"]
[BlackElo "1398"]
[Annotator "NA"]
[PlyCount "106"]
[EventDate "2019.12.27"]
[EventType "team-tourn"]
[EventRounds "7"]
[EventCountry "GER"]
[SourceTitle "playchess.com"]
[Source "ChessBase"]
[SourceQuality "1"]
[WhiteTeam "Karlsruher SF"]
[BlackTeam "SC Borussia Lichtenberg"]
[WhiteTeamCountry "GER"]
[BlackTeamCountry "GER"]
[TimeControl "40/5400+30:1800+30"]

1. e4 {[%emt 0:00:00]} b6 {[%emt 0:00:00]} 2. d4 {[%emt 0:00:00]} Bb7 {[%emt 0:00:00]} 3. Bd3 {[%emt 0:00:09]} e6 {[%emt 0:00:06]} 4. Nf3 {[%emt 0:00:29]} Nf6 {[%emt 0:00:25]} 5. Qe2 {[%emt 0:02:25]} d6 {[%emt 0:00:30]} 6. c4 {[%emt 0:03:41]} Be7 {[%emt 0:05:43]} 7. Nc3 {[%emt 0:00:35]} O-O {[%emt 0:05:35]} 8. O-O {[%emt 0:01:01]} Re8 {[%emt 0:03:14]} 9. Bf4 {[%emt 0:04:57]} Bf8 {[%emt 0:05:18]} 10. Rfd1 {[%emt 0:02:26]} g6 {[%emt 0:08:20]} 11. Bg5 {[%emt 0:01:28]} Be7 {[%emt 0:05:01]} 12. Rac1 {[%emt 0:04:46]} Nh5 {[%emt 0:03:13]} 13. Bxe7 {[%emt 0:00:40]} Qxe7 {[%emt 0:00:29]} 14. Qe3 {[%emt 0:02:00]} Nd7 {[%emt 0:05:55]} 15. Be2 {[%emt 0:08:59]} Ng7 {[%emt 0:06:08]} 16. Qh6 {[%emt 0:08:18]} Nf8 {[%emt 0:00:54]} 17. h4 {[%emt 0:07:54]} Rad8 {[%emt 0:01:59]} 18. d5 {[%emt 0:07:16]} e5 {[%emt 0:06:22]} 19. c5 {[%emt 0:11:07]} Bc8 {[%emt 0:01:57]} 20. c6 {[%emt 0:02:50]} a6 {[%emt 0:02:31]} 21. g3 {[%emt 0:04:26]} f5 {[%emt 0:12:49]} 22. Qg5 {[%emt 0:01:48]} Qf7 {[%emt 0:03:37]} 23. exf5 {[%emt 0:03:56]} Qxf5 {[%emt 0:04:16]} 24. Qxf5 {[%emt 0:00:58]} Nxf5 {[%emt 0:00:07]} 25. Ne4 {[%emt 0:00:32]} Kg7 {[%emt 0:00:36]} 26. a4 {[%emt 0:04:00]} h6 {[%emt 0:00:51]} 27. g4 {[%emt 0:00:53]} Ne7 {[%emt 0:00:27]} 28. g5 {[%emt 0:00:26]} Nh7 {[%emt 0:02:30]} 29. gxh6+ {[%emt 0:01:33]} Kxh6 {[%emt 0:00:16]} 30. Nfg5 {[%emt 0:00:26]} Nxg5 {[%emt 0:00:38]} 31. hxg5+ {[%emt 0:00:04]} Kg7 {[%emt 0:00:13]} 32. Nf6 {[%emt 0:02:07]} Rf8 {[%emt 0:00:31]} 33. Ra1 {[%emt 0:03:10]} Ng8 {[%emt 0:00:54]} 34. a5 {[%emt 0:01:04]} b5 {[%emt 0:01:08]} 35. Bxb5 {[%emt 0:00:21]} axb5 {[%emt 0:00:26]} 36. a6 {[%emt 0:00:04]} Bxa6 {[%emt 0:00:48]} 37. Rxa6 {[%emt 0:00:07]} Nxf6 {[%emt 0:00:44]} 38. gxf6+ {[%emt 0:00:05]} Rxf6 {[%emt 0:03:10]} 39. Ra7 {[%emt 0:00:25]} Rf7 {[%emt 0:00:09]} 40. Rb7 {[%emt 0:00:24]} Rdf8 {[%emt 0:00:31]} 41. Rd2 {[%emt 0:30:29]} b4 {[%emt 0:36:55]} 42. Rxb4 {[%emt 0:01:02]} Rf4 {[%emt 0:00:12]} 43. Rb7 {[%emt 0:00:48]} R8f7 {[%emt 0:00:21]} 44. b4 {[%emt 0:00:24]} Kf6 {[%emt 0:00:00]} 45. b5 {[%emt 0:00:00]} Rb4 {[%emt 0:00:00]} 46. b6 {[%emt 0:00:00]} Rxb6 {[%emt 0:00:00]} 47. Rxb6 {[%emt 0:00:00]} cxb6 {[%emt 0:00:00]} 48. Rb2 {[%emt 0:00:00]} e4 {[%emt 0:00:00]} 49. Rxb6 {[%emt 0:00:00]} Rc7 {[%emt 0:00:00]} 50. Rb1 {[%emt 0:00:00]} Ke5 {[%emt 0:00:00]} 51. Rd1 {[%emt 0:00:00]} g5 {[%emt 0:00:00]} 52. Kf1 {[%emt 0:00:00]} Kf4 {[%emt 0:00:00]} 53. Ke2 {[%emt 0:00:00]} g4 {[%emt 0:00:00] normal} 1-0

[Event "DVM U14w 2019"]
[Site "Neumuenster"]
[Date "2019.12.28"]
[Round "3"]
[White "Müller, Helene"]
[Black "Reiter, Hannah"]
[Result "1-0"]
[ECO "C54"]
[WhiteElo "1545"]
[BlackElo "1373"]
[Annotator "NA RC"]
[PlyCount "105"]
[EventDate "2019.12.27"]
[EventType "team-tourn"]
[EventRounds "7"]
[EventCountry "GER"]
[SourceTitle "playchess.com"]
[Source "ChessBase"]
[SourceQuality "1"]
[WhiteTeam "SC Borussia Lichtenberg"]
[BlackTeam "Karlsruher SF"]
[BlackTeamCountry "GER"]
[TimeControl "40/5400+30:1800+30"]

1. e4 {[%emt 0:00:00]} e5 {[%emt 0:00:00]} 2. Nf3 {[%emt 0:00:00]} Nc6 {[%emt 0:00:00]} 3. Bc4 {[%emt 0:00:00]} Bc5 {[%emt 0:00:00]} 4. c3 {[%emt 0:00:00]} Nf6 {[%emt 0:00:00]} 5. d3 {[%emt 0:00:01]} d6 {[%emt 0:00:00]} 6. Nbd2 {[%emt 0:00:07]} Bg4 {[%emt 0:01:23]} 7. O-O {[%emt 0:00:08]} O-O {[%emt 0:00:05]} 8. Re1 {[%emt 0:00:07]} Nh5 {[%emt 0:02:07]} 9. h3 {[%emt 0:01:23]} Bxf3 {[%emt 0:00:37]} 10. Nxf3 {[%emt 0:00:10]} h6 {[%emt 0:01:16]} 11. Nxe5 {[%emt 0:00:40]} dxe5 {[%emt 0:02:09]} 12. Qxh5 {[%emt 0:00:12]} Qf6 {[%emt 0:02:50]} 13. Be3 {[%emt 0:02:07]} Bxe3 {[%emt 0:00:43]} 14. Rxe3 {[%emt 0:00:12]} Rad8 {[%emt 0:05:09]} 15. Rf3 {[%emt 0:20:39]} Qe7 {[%emt 0:02:15]} 16. Re1 {[%emt 0:02:24]} Na5 {[%emt 0:03:21]} 17. Bb5 {[%emt 0:00:37]} a6 {[%emt 0:02:43]} 18. Ba4 {[%emt 0:00:11]} b5 {[%emt 0:00:18]} 19. Bc2 {[%emt 0:00:08]} c5 {[%emt 0:01:49]} 20. b3 {[%emt 0:09:31]} c4 {[%emt 0:01:16]} 21. bxc4 {[%emt 0:03:27]} bxc4 {[%emt 0:00:07]} 22. d4 {[%emt 0:10:26]} exd4 {[%emt 0:03:03]} 23. Qxa5 {[%emt 0:00:23]} d3 {[%emt 0:01:41]} 24. Bd1 {[%emt 0:02:40]} d2 {[%emt 0:00:39]} 25. Re2 {[%emt 0:09:08]} Qb7 {[%emt 0:03:24]} 26. e5 {[%emt 0:09:29]} Qb1 {[%emt 0:04:09]} 27. Qa4 {[%emt 0:01:03]} Qc1 {[%emt 0:04:44]} 28. Rf4 {[%emt 0:11:13]} Rb8 {[%emt 0:03:02]} 29. Rd4 {[%emt 0:09:08]} Rb2 {[%emt 0:01:35]} 30. Kh2 {[%emt 0:05:03]} Qxc3 {[%emt 0:01:51]} 31. Qxc4 {[%emt 0:03:26]} Qa5 {[%emt 0:00:54]} 32. a4 {[%emt 0:00:18]} Rd8 {[%emt 0:00:28]} 33. Rxd8+ {[%emt 0:00:24]} Qxd8 {[%emt 0:00:06]} 34. Qc3 {[%emt 0:00:43]} Ra2 {[%emt 0:00:39]} 35. Qb3 {[%emt 0:00:59]} Ra1 {[%emt 0:00:26]} 36. Qc2 {[%emt 0:00:12]} Qd4 {[%emt 0:02:11]} 37. Rxd2 {[%emt 0:00:16]} Qxe5+ {[%emt 0:00:14]} 38. g3 {[%emt 0:00:16]} Qe8 {[%emt 0:00:38]} 39. Qb2 {[%emt 0:00:23]} Rxd1 {[%emt 0:01:37]} 40. Rxd1 {[%emt 0:00:06]} f6 {[%emt 0:00:56]} 41. Qb3+ {[%emt 0:30:10]} Kh7 {[%emt 0:30:25]} 42. Qd3+ {[%emt 0:00:23]} g6 {[%emt 0:00:17]} 43. Qxa6 {[%emt 0:00:15]} Kg7 {[%emt 0:00:18]} 44. Qb7+ {[%emt 0:00:27]} Kf8 {[%emt 0:00:39]} 45. Qc7 {[%emt 0:00:34]} Qe7 {[%emt 0:02:22]} 46. Rd8+ {[%emt 0:00:17]} Kf7 {[%emt 0:00:25]} 47. Rd7 {[%emt 0:00:07]} Qxd7 {[%emt 0:00:21]} 48. Qxd7+ {[%emt 0:00:06]} Kf8 {[%emt 0:00:38]} 49. a5 {[%emt 0:00:05]} f5 {[%emt 0:00:07]} 50. a6 {[%emt 0:00:05]} f4 {[%emt 0:00:39]} 51. a7 {[%emt 0:00:05]} fxg3+ {[%emt 0:00:08]} 52. fxg3 {[%emt 0:00:07]} g5 {[%emt 0:00:12]} 53. a8=Q# {[%emt 0:00:09] normal Ke8 Qc7#} 1-0

[Event "DVM U14w 2019"]
[Site "Neumuenster"]
[Date "2019.12.28"]
[Round "3"]
[White "Voigt, Anastasia"]
[Black "Boutayeb, Malak"]
[Result "1-0"]
[ECO "C54"]
[WhiteElo "1511"]
[BlackElo "800"]
[Annotator "NA RC"]
[PlyCount "51"]
[EventDate "2019.12.27"]
[EventType "team-tourn"]
[EventRounds "7"]
[EventCountry "GER"]
[SourceTitle "playchess.com"]
[Source "ChessBase"]
[SourceQuality "1"]
[WhiteTeam "USV Halle"]
[BlackTeam "VSG 1880 Offenbach"]
[WhiteTeamCountry "GER"]
[TimeControl "40/5400+30:1800+30"]

1. e4 {[%emt 0:00:00]} e5 {[%emt 0:00:00]} 2. Nf3 {[%emt 0:00:00]} Nc6 {[%emt 0:00:00]} 3. Bc4 {[%emt 0:00:00]} Bc5 {[%emt 0:00:05]} 4. c3 {[%emt 0:00:00]} Nf6 {[%emt 0:00:15]} 5. d3 {[%emt 0:00:57]} d5 {[%emt 0:05:35]} 6. exd5 {[%emt 0:02:32]} Nxd5 {[%emt 0:02:07]} 7. Qb3 {[%emt 0:03:44]} Be6 {[%emt 0:01:31]} 8. Qxb7 {[%emt 0:03:10]} Bd7 {[%emt 0:15:37]} 9. Bxd5 {[%emt 0:09:41]} O-O {[%emt 0:08:20]} 10. O-O {[%emt 0:04:09]} Qf6 {[%emt 0:10:32]} 11. Qxc7 {[%emt 0:00:49]} Qd6 {[%emt 0:07:18]} 12. Qxd6 {[%emt 0:00:24]} Bxd6 {[%emt 0:00:12]} 13. b4 {[%emt 0:00:19]} Rab8 {[%emt 0:02:52]} 14. Nbd2 {[%emt 0:00:30]} a5 {[%emt 0:02:34]} 15. a3 {[%emt 0:00:19]} axb4 {[%emt 0:00:39]} 16. axb4 {[%emt 0:00:09]} Rbc8 {[%emt 0:04:17]} 17. Nc4 {[%emt 0:00:35]} Be7 {[%emt 0:01:38]} 18. Nfxe5 {[%emt 0:00:34]} Be6 {[%emt 0:00:33]} 19. Bxc6 {[%emt 0:00:16]} Bxc4 {[%emt 0:03:07]} 20. dxc4 {[%emt 0:00:08]} Bf6 {[%emt 0:01:09]} 21. Nd7 {[%emt 0:00:49]} Bxc3 {[%emt 0:06:41]} 22. Ra3 {[%emt 0:01:43]} Bxb4 {[%emt 0:02:13]} 23. Rb3 {[%emt 0:00:11]} Bc5 {[%emt 0:00:31]} 24. Nxf8 {[%emt 0:00:48]} Kxf8 {[%emt 0:01:06]} 25. Bd5 {[%emt 0:00:19]} Rd8 {[%emt 0:02:02]} 26. Rb7 {[%emt 0:00:20] normal} 1-0

[Event "DVM U14w 2019"]
[Site "Neumuenster"]
[Date "2019.12.28"]
[Round "3"]
[White "Ramien, Hannah"]
[Black "von Beckh, Frieda"]
[Result "1-0"]
[ECO "B23"]
[WhiteElo "1439"]
[BlackElo "1513"]
[Annotator "NA RC"]
[PlyCount "67"]
[EventDate "2019.12.27"]
[EventType "team-tourn"]
[EventRounds "7"]
[EventCountry "GER"]
[SourceTitle "playchess.com"]
[Source "ChessBase"]
[SourceQuality "1"]
[WhiteTeam "SG Porz"]
[BlackTeam "SV Multatuli Ingelheim"]
[WhiteTeamCountry "GER"]
[BlackTeamCountry "GER"]
[TimeControl "40/5400+30:1800+30"]

1. e4 {[%emt 0:00:00]} c5 {[%emt 0:00:00]} 2. Nc3 {[%emt 0:00:00]} Nc6 {[%emt 0:00:00]} 3. f4 {[%emt 0:00:00]} g6 {[%emt 0:00:03]} 4. Nf3 {[%emt 0:00:00]} Bg7 {[%emt 0:00:12]} 5. Bc4 {[%emt 0:00:10]} d6 {[%emt 0:01:24]} 6. O-O {[%emt 0:00:23]} Bg4 {[%emt 0:01:26]} 7. Bxf7+ {[%emt 0:03:15]} Kxf7 {[%emt 0:00:08]} 8. Ng5+ {[%emt 0:00:09]} Ke8 {[%emt 0:02:15]} 9. Qxg4 {[%emt 0:00:26]} Nd4 {[%emt 0:06:25]} 10. Qd1 {[%emt 0:07:28]} Nh6 {[%emt 0:13:59]} 11. Ne2 {[%emt 0:07:23]} Qd7 {[%emt 0:10:57]} 12. c3 {[%emt 0:03:26]} Ne6 {[%emt 0:03:44]} 13. Qb3 {[%emt 0:04:01]} Nd8 {[%emt 0:07:15]} 14. Ng3 {[%emt 0:02:07]} e6 {[%emt 0:04:43]} 15. d3 {[%emt 0:07:33]} Nhf7 {[%emt 0:02:23]} 16. f5 {[%emt 0:09:38]} Nxg5 {[%emt 0:05:50]} 17. Bxg5 e5 {[%emt 0:02:51]} 18. Bxd8 {[%emt 0:05:59]} Rxd8 {[%emt 0:01:24]} 19. Qe6+ {[%emt 0:02:06]} Qe7 {[%emt 0:01:21]} 20. Rf3 {[%emt 0:05:32]} Bh6 {[%emt 0:02:43]} 21. Raf1 {[%emt 0:07:13]} Rd7 {[%emt 0:04:58]} 22. Qxe7+ {[%emt 0:02:18]} Rxe7 {[%emt 0:01:08]} 23. fxg6 {[%emt 0:04:18]} hxg6 {[%emt 0:00:29]} 24. Rf6 {[%emt 0:01:31]} Be3+ {[%emt 0:03:18]} 25. Kh1 {[%emt 0:00:36]} Reh7 {[%emt 0:04:20]} 26. h3 {[%emt 0:05:32]} g5 {[%emt 0:03:18]} 27. Rg6 {[%emt 0:00:36]} Bf4 {[%emt 0:01:43]} 28. Nf5 {[%emt 0:05:50]} Kf7 {[%emt 0:01:49]} 29. Rxd6 {[%emt 0:01:19]} Ke8 {[%emt 0:02:10]} 30. Rg6 {[%emt 0:00:37]} Kf7 {[%emt 0:00:24]} 31. Rd6 {[%emt 0:02:30]} Ke8 {[%emt 0:00:34]} 32. Re6+ {[%emt 0:01:24]} Kd7 {[%emt 0:00:27]} 33. Rg6 {[%emt 0:00:58]} Rh5 {[%emt 0:02:05]} 34. Kg1 {[%emt 0:01:42] normal} 1-0

[Event "DVM U14w 2019"]
[Site "Neumuenster"]
[Date "2019.12.28"]
[Round "3"]
[White "Nguyen, Jenny Ha-Linh"]
[Black "Evering, Enna"]
[Result "*"]
[ECO "C55"]
[WhiteElo "1387"]
[BlackElo "1556"]
[Annotator "NA RC"]
[PlyCount "35"]
[EventDate "2019.12.27"]
[EventType "team-tourn"]
[EventRounds "7"]
[EventCountry "GER"]
[SourceTitle "playchess.com"]
[Source "ChessBase"]
[SourceQuality "1"]
[WhiteTeam "SG Leipzig"]
[BlackTeam "SC Papenburg"]
[WhiteTeamCountry "GER"]
[BlackTeamCountry "GER"]
[TimeControl "40/5400+30:1800+30"]

1. e4 {[%emt 0:00:00]} e5 {[%emt 0:00:00]} 2. Nf3 {[%emt 0:00:00]} Nc6 {[%emt 0:00:00]} 3. Bc4 {[%emt 0:00:00]} Nf6 {[%emt 0:00:09]} 4. d3 {[%emt 0:00:04]} Be7 {[%emt 0:00:35]} 5. c3 {[%emt 0:00:36]} O-O {[%emt 0:00:35]} 6. O-O {[%emt 0:00:27]} d5 {[%emt 0:00:44]} 7. exd5 {[%emt 0:00:11]} Nxd5 {[%emt 0:00:31]} 8. Re1 {[%emt 0:00:52]} Bg4 {[%emt 0:01:25]} 9. Bb3 {[%emt 0:01:38] unterminated} Re8 {[%emt 0:14:01] unterminated} 10. Bc2 {[%emt 0:10:39] unterminated} Bf8 {[%emt 0:08:42] unterminated} 11. Nbd2 {[%emt 0:03:05] unterminated} Nb6 {[%emt 0:05:15] unterminated} 12. Ne4 {[%emt 0:05:41] unterminated} f6 {[%emt 0:06:15] unterminated} 13. Bb3+ {[%emt 0:08:09] unterminated} Be6 {[%emt 0:08:38] unterminated} 14. Bxe6+ {[%emt 0:06:43] unterminated} Rxe6 {[%emt 0:01:07] unterminated} 15. Qb3 {[%emt 0:01:22] unterminated} Qe7 {[%emt 0:13:57] unterminated} 16. Nc5 {[%emt 0:11:45] unterminated} Qxc5 {[%emt 0:16:58]} 17. Qxe6+ {[%emt 0:00:20]} Kh8 18. Qb3 {[%emt 0:06:58] unterminated} *

[Event "DVM U14w 2019"]
[Site "Neumuenster"]
[Date "2019.12.28"]
[Round "3"]
[White "Dixon Quiroz, Laura Michaela"]
[Black "Stowicek, Yara Mathilda"]
[Result "*"]
[ECO "C50"]
[WhiteElo "1310"]
[BlackElo "1682"]
[Annotator "NA RC"]
[PlyCount "42"]
[EventDate "2019.12.27"]
[EventType "team-tourn"]
[EventRounds "7"]
[EventCountry "GER"]
[SourceTitle "playchess.com"]
[Source "ChessBase"]
[SourceQuality "1"]
[WhiteTeam "VSG 1880 Offenbach"]
[BlackTeam "USV Halle"]
[WhiteTeamCountry "GER"]
[BlackTeamCountry "GER"]
[TimeControl "40/5400+30:1800+30"]

1. e4 {[%emt 0:00:00]} e5 {[%emt 0:00:00]} 2. Nf3 {[%emt 0:00:00]} Nc6 {[%emt 0:00:00]} 3. Bc4 {[%emt 0:00:00]} Nf6 {[%emt 0:00:00]} 4. d3 {[%emt 0:00:00]} Bc5 {[%emt 0:00:29]} 5. c3 {[%emt 0:00:35]} a6 {[%emt 0:01:08]} 6. Bb3 {[%emt 0:00:35]} d6 {[%emt 0:01:11]} 7. h3 {[%emt 0:01:45]} Ba7 {[%emt 0:02:01]} 8. Nbd2 {[%emt 0:00:29]} O-O {[%emt 0:01:28]} 9. O-O {[%emt 0:00:27] unterminated} Ne7 {[%emt 0:09:13] unterminated} 10. Re1 {[%emt 0:02:10] unterminated} Ng6 {[%emt 0:01:50] unterminated} 11. Nf1 {[%emt 0:02:02] unterminated} Nh5 {[%emt 0:14:57] unterminated} 12. Bg5 {[%emt 0:18:57] unterminated} Qe8 {[%emt 0:06:17] unterminated} 13. Nxe5 {[%emt 0:14:50] unterminated} Qxe5 {[%emt 0:09:20] unterminated} 14. Qxh5 {[%emt 0:01:56] unterminated} Nf4 {[%emt 0:01:28] unterminated} 15. Qh4 {[%emt 0:06:40]} Nxd3 {[%emt 0:00:54]} 16. Re2 {[%emt 0:00:26] unterminated} Nc5 {[%emt 0:09:46] unterminated} 17. Bc2 {[%emt 0:00:34] unterminated} Ne6 {[%emt 0:04:22] unterminated} 18. Be3 {[%emt 0:03:34] unterminated} Bxe3 {[%emt 0:05:18]} 19. Rxe3 {[%emt 0:00:28] unterminated} Nf4 {[%emt 0:01:43] unterminated} 20. Nh2 {[%emt 0:03:29] unterminated} Ng6 {[%emt 0:04:25] unterminated} 21. Qg3 {[%emt 0:00:32] unterminated} Qb5 {[%emt 0:02:30] unterminated} *